Cogmind - Beta 16 @@@ ROGUE MODE // 2025.12.19 @ 03:06:49 Player: War__Prophet Result: Destroyed by B-36 Bruiser with Hammer Performance ------------- Evolutions (1) 500 Regions Visited (2) 400 Robots Destroyed (14) 70 Value Destroyed (252) 252 Prototype IDs (1) 20 Alien Tech Used (0) 0 Bonus (0) 0 TOTAL SCORE: 1242 Bonus ------- None Cogmind --------- Core Integrity 0/400 Matter 300/300 Energy 95/100 System Corruption 6% Temperature Cool (6) Movement Core (100) Ox1 Location -9/Materials Parts ------- > --- POWER (2) -------- (None) > --- PROPULSION (3) --- (None) > --- UTILITY (2) ------ Power Shielding > --- WEAPON (2) ------- Heavy Hammer > --- INVENTORY (5) ---- Light Ion Engine Light Ion Engine Cooled Ion Engine Cooled Ion Engine Signal Interpreter Peak State ------------ > --- POWER ------------ Cooled Ion Engine > --- PROPULSION ------- Flight Unit Flight Unit > --- UTILITY ---------- Improved Heat Sink Small Storage Unit > --- WEAPON ----------- Heavy Hammer > --- INVENTORY -------- Ion Engine Light Ion Engine Light Ion Engine Light Ion Engine Cooled Ion Engine Cooled Ion Engine Compact Wheel [Rating: 12] Favorites ----------- Power Ion Engine Engine Ion Engine Propulsion Compact Wheel Wheel Compact Wheel Flight Unit Flight Unit Utility Small Storage Unit Device Improved Heat Sink Storage Small Storage Unit Protection Power Shielding Weapon Medium Laser Energy Gun Medium Laser Impact Weapon Heavy Hammer Build | -11 -10 -9 ------- Run | Yrd Mat Mat Slots Evolved 2 | . . 2 Power 1 | . . 1 Propulsion 1 | . . 1 Utility . | . . . Weapon . | . . . Parts Attached 15 | 7 3 5 Power 3 | 2 . 1 Engine 3 | 2 . 1 Core . | . . . Reactor . | . . . Propulsion 5 | 2 2 1 Treads . | . . . Leg . | . . . Wheel 2 | 2 . . Hover . | . . . Flight 3 | . 2 1 Utility 3 | 1 1 1 Device 1 | . 1 . Storage 1 | 1 . . Processor . | . . . Hackware . | . . . Protection 1 | . . 1 Artifact . | . . . Weapon 4 | 2 . 2 Energy Gun 2 | 2 . . Energy Cannon . | . . . Ballistic Gun . | . . . Ballistic Cannon . | . . . Launcher . | . . . Special Weapon . | . . . Impact Weapon 2 | . . 2 Slashing Weapon . | . . . Piercing Weapon . | . . . Special Melee Weapon . | . . . Unidentified Prototypes 1 | . . 1 Parts Lost 7 | . 4 3 Power 1 | . 1 . Propulsion 4 | . 1 3 Utility . | . . . Weapon 2 | . 2 . Highest Loss Streak 3 | . 3 2 To Critical Strikes . | . . . Average Backups 4 | . 4 5 Power 2 | . 2 4 Propulsion 1 | . 1 . Utility . | . . . Weapon . | . . . Tool/Special . | . . . Unused Backups 8 | . . 8 Power 6 | . . 6 Propulsion . | . . . Utility 2 | . . 2 Weapon . | . . . Tool/Special . | . . . Average Slot Usage (%) 57 | . 66 43 Engine 4 | . 5 3 Wheel 11 | . 18 . Flight 5 | . 1 13 Device 7 | . 8 5 Storage 10 | . 14 5 Protection 2 | . . 5 Energy Gun 11 | . 17 . Impact Weapon 3 | . . 10 Peak Build Rating 12 | 6 7 12 Average Rating 6 | 4 5 6 On Entrance 4 | . 6 6 Avg Prop Armor Cover (%) . | . . . Naked Turns 13 | . . 13 Heaviest Build 17 | 14 14 17 Greatest Support 32 | 32 32 8 Greatest Overweight (x) 2 | 1 . 2 Average Overweight (x) . | . . . Largest Inventory Capacity 8 | 8 8 8 Average Capacity 7 | 6 8 6 Most Carried 8 | 1 6 8 Average Carried 4 | . 4 5 Final Capacity 8 | 8 8 5 Final Carried 5 | 1 5 5 Class Distribution -------------------- 100% | Mutant Dominant Class ---------------- Mutant | -10/Materials Mutant | -9/Materials Resources | -11 -10 -9 ----------- Run | Yrd Mat Mat Matter Collected 346 | 220 76 50 Remotely . | . . . Salvage Created 388 | . 213 175 Parts 19 | . 11 8 Haulers Intercepted 1 | . . 1 Recyclers Shooed . | . . . Parts Field Recycled . | . . . Retrieved Matter . | . . . Parts Self-Destructed . | . . . Prevented . | . . . Parts Restored . | . . . Kills | -11 -10 -9 ------- Run | Yrd Mat Mat Combat Hostiles Destroyed 11 | . 6 5 Melee 4 | . . 4 Guns 6 | . 6 . Classes Destroyed 5 | . 3 2 Builder 1 | . . 1 Hauler 1 | . . 1 Watcher 1 | . 1 . Swarmer 7 | . 3 4 Grunt 4 | . 3 1 Best Kill Streak 4 | . 3 4 Combat Bots Only 4 | . 3 4 Max Kills in Single Turn 1 | . 1 1 Gunslinging . | . . . Exploded . | . . . Melee 1 | . . 1 Uniques/NPCs Destroyed . | . . . Combat | -11 -10 -9 -------- Run | Yrd Mat Mat Hostile Shots Fired 123 | . 53 70 Missed 39 | . 17 22 Hits 84 | . 36 48 Melee 4 | . . 4 Projectile 80 | . 36 44 Critical Strikes 5 | . 1 4 Damage Taken 1002 | . 445 557 Core 571 | . 169 402 Absorbed by Shields . | . . . Core Remaining (%) 66 | 100 32 . Volleys Fired 30 | . 30 . Largest 2 | . 2 . Hottest 90 | . 90 . Shots Fired 39 | . 39 . Gun 39 | . 39 . Cannon . | . . . Launcher . | . . . Special . | . . . Kinetic . | . . . Thermal 30 | . 30 . Explosive . | . . . Electromagnetic 9 | . 9 . Robot Hit Streak 7 | . 7 . Robot Miss Streak 3 | . 3 . Penetration Max . | . . . Secondary Targets . | . . . Shots Hit Robots 35 | . 24 11 Core Hits 16 | 1 12 3 Critical Kills . | . . . Critical Parts Destroyed 3 | . . 3 Critical Strikes 4 | . 1 3 Burn 1 | . 1 . Smash 3 | . . 3 Melee Attacks 22 | . . 22 Impact 22 | . . 22 Slashing . | . . . Piercing . | . . . Sneak Attacks 2 | . . 2 Combat Hostiles . | . . . Follow-up Attacks . | . . . Damage Inflicted 873 | 1 322 550 Guns 305 | . 305 . Cannons . | . . . Explosions . | . . . Melee 526 | . . 526 Ramming 42 | 1 17 24 Kinetic . | . . . Thermal 215 | . 215 . Explosive . | . . . Electromagnetic 90 | . 90 . Impact 526 | . . 526 Slashing . | . . . Piercing . | . . . Highest Corruption 6 | . . 6 Average Corruption 5 | . . 5 Corruption Purged . | . . . Corruption Blocked . | . . . Overload Shots . | . . . Overflow Damage 213 | . . 213 Projectiles . | . . . Explosions . | . . . Melee 213 | . . 213 Knockbacks 1 | . . 1 Impact 1 | . . 1 Kinetic . | . . . Secondary . | . . . Self-Inflicted Damage 19 | . 8 11 Shots . | . . . Rammed 9 | 1 5 3 Targets Rammed 9 | 1 5 3 Kicked . | . . . Crushed . | . . . Highest Temperature 319 | . 319 2 Average Temperature 136 | . 138 2 Received Heat Transfer 306 | . 219 87 Siege Activations . | . . . Martial Activations . | . . . Shielding Activations . | . . . Robots Disrupted . | . . . Combat Hostiles . | . . . Robots Corrupted 2 | . . 2 Combat Hostiles 1 | . . 1 Parts Fried 6 | . . 6 Impact Corruptions 9 | . . 9 Robots Melted . | . . . Combat Hostiles . | . . . Parts Melted 1 | . 1 . Heat Transferred 703 | . 703 . Parts Sabotaged . | . . . Parts Stolen . | . . . Parts Stripped . | . . . Power Chain Reactions . | . . . Alert | -11 -10 -9 ------- Run | Yrd Mat Mat Maximum Alert Level . | . . . Low Security (%) 100 | 100 100 100 Level 1 . | . . . Level 2 . | . . . Level 3 . | . . . Level 4 . | . . . Level 5 . | . . . High Security . | . . . Max Security . | . . . Peak Influence 115 | . 61 115 Initial 12 | . . 12 Average 26 | . 13 52 Influence Increases 460 | . 230 230 Destroy 0b10 Robot/C 220 | . 120 100 Destroy 0b10 Robot/NC 15 | . 5 10 Destroy Leader 44 | . 32 12 Successful Hack 12 | . 12 . Disable Machine 15 | . . 15 Destroy Structure 4 | . 1 3 Partial Spotted 15 | . 15 . Lose Combat Pursuer 135 | . 45 90 Influence Decreases 387 | . 200 187 Entered New Map 18 | . . 18 Time Decay 309 | . 160 149 Lost Part 60 | . 40 20 Squads Dispatched 2 | . 2 . Investigation . | . . . Extermination . | . . . Reinforcement 2 | . 2 . Assault . | . . . Garrison . | . . . Intercept . | . . . Searches Triggered . | . . . Construction Impeded . | . . . Haulers Reinforced . | . . . Active Scanning Responses . | . . . Cargo Convoy Interrupts . | . . . Stealth | -11 -10 -9 --------- Run | Yrd Mat Mat Distress Signals . | . . . Communications Jammed . | . . . Distress Signals . | . . . Times Spotted 33 | . 18 15 Peak Tracking Total 5 | . 4 5 Tactical Retreats 6 | . 2 4 Traps | -11 -10 -9 ------- Run | Yrd Mat Mat Traps Triggered . | . . . Indirectly . | . . . Trap Hack Attempts . | . . . Triggered . | . . . Disarmed . | . . . Reprogrammed . | . . . Reused . | . . . Traps Extracted . | . . . Installed . | . . . Triggered . | . . . Machines | -11 -10 -9 ---------- Run | Yrd Mat Mat Machines Disabled 1 | . . 1 Max in Single Turn 1 | . . 1 Machines Repaired . | . . . Machines Dismantled . | . . . Machines Sabotaged . | . . . Overloaded Fab Kills . | . . . Hacking | -11 -10 -9 --------- Run | Yrd Mat Mat Machines Accessed 7 | . 6 1 Terminals 7 | . 6 1 Fabricators . | . . . Repair Stations . | . . . Recycling Units . | . . . Scanalyzers . | . . . Garrison Access . | . . . Total Hacks 9 | . 8 1 Successful 6 | . 5 1 Failed 3 | . 3 . Catastrophic 1 | . 1 . Database Lockouts . | . . . Manual 9 | . 8 1 Terminals 9 | . 8 1 Fabricators . | . . . Repair Stations . | . . . Recycling Units . | . . . Scanalyzers . | . . . Garrison Access . | . . . Terminal Hacks . | . . . Fabricator Hacks . | . . . Repair Station Hacks . | . . . Recycling Unit Hacks . | . . . Scanalyzer . | . . . Garrison Access Hacks . | . . . Unauthorized Hacks 6 | . 5 1 Terminals 6 | . 5 1 Skim 6 | . 5 1 Fabricators . | . . . Repair Stations . | . . . Recycling Units . | . . . Scanalyzers . | . . . Garrison Access . | . . . Data Cores Recovered . | . . . Used . | . . . Hacking Detections 5 | . 4 1 Full Trace Events 1 | . 1 . Feedback Events . | . . . Feedback Blocked . | . . . Robot Schematics Acquired . | . . . Robots Built . | . . . Authchips . | . . . Time . | . . . Total Robot Build Rating . | . . . Part Schematics Acquired . | . . . Parts Built . | . . . Authchips . | . . . Time . | . . . Total Part Build Rating . | . . . Part Studies Acquired . | . . . Parts Repaired . | . . . Time . | . . . Parts Recycled . | . . . Recycled Matter . | . . . Retrieved Matter . | . . . Retrieved Components . | . . . Parts Scanalyzed . | . . . Part Schematics Acquired . | . . . Parts Damaged . | . . . Bothacking | -11 -10 -9 ------------ Run | Yrd Mat Mat Used RIF Installer . | . . . Robots Hacked . | . . . Non-combat . | . . . Combat . | . . . Robot Hacks Applied . | . . . Relay Couplers Released . | . . . Fabnet Peak Effective % . | . . . Robots Rewired . | . . . Allies Hacked . | . . . Hacks Repelled . | . . . Allies | -11 -10 -9 -------- Run | Yrd Mat Mat Total Allies . | . . . Largest Group . | . . . Highest-Rated Group . | . . . Highest-Rated Ally . | . . . Total Orders . | . . . Ally Attacks . | . . . Total Damage . | . . . Kills . | . . . Allies Corrupted . | . . . Allies Melted . | . . . Intel | -11 -10 -9 ------- Run | Yrd Mat Mat Active Infowar (turns) . | . . . Robot Analysis Total . | . . . Derelict Logs Recovered . | . . . Drone Launches . | . . . Drone Recoveries . | . . . Exploration | -11 -10 -9 ------------- Run | Yrd Mat Mat Turns Passed 933 | 56 543 334 Spaces Moved 779 | 48 483 248 Core 83 | 7 . 76 Treads . | . . . Legs . | . . . Wheels 454 | 41 413 . Hover . | . . . Flight 242 | . 70 172 Fastest Speed 37 | 50 37 37 Average Speed 90 | 94 90 88 Slowest Speed 197 | 100 100 197 Overloaded Moves . | . . . Propulsion Burnouts . | . . . Robots Hopped 1 | . 1 . Potential Cave-ins . | . . . Cave-ins Triggered . | . . . Exploration Rate (%) 37 | 4 90 18 Regions Visited 2 Branch Regions . Pre-discovered Areas . | . . . Known Exits Taken . | . . . Unknown Exits Taken 2 | 1 1 . Scrap Searched . | . . . Spaces Dug 3 | . . 3 Terrain Destroyed 3 | . . 3 Melee 3 | . . 3 Projectile . | . . . AOE . | . . . Terrain Rammed . | . . . Walls Destroyed . | . . . Machines Disabled . | . . . Actions | -11 -10 -9 --------- Run | Yrd Mat Mat Total 925 | 55 546 324 Wait 57 | . 19 38 Move 776 | 48 480 248 Hop 1 | . 1 . Pick Up 10 | . 5 5 Fast Attach 13 | 6 1 6 Attach 3 | . 3 . Detach 2 | . 2 . Swap 1 | 1 . . Drop 2 | . . 2 Fire 30 | . 30 . Melee 22 | . . 22 Ram 8 | . 5 3 Kick . | . . . Crush . | . . . Escape Stasis . | . . . Rewire . | . . . Trap . | . . . Miscellaneous . | . . . Route ------- -11/Scrapyard -10/Materials (discovered 4 exits: *Mat x3 / [*Min]) -9/Materials History --------- Turn | Location | Event 29 | -11/Scrapyard | Discovered new exit (range 16) 57 | -11/Scrapyard | Entered Materials 135 | -10/Materials | Discovered new exit (range 8) 295 | -10/Materials | Lost 3 parts (1p1n1w) 309 | -10/Materials | Discovered new exit (range 16) 314 | -10/Materials | Build established: Mutant 361 | -10/Materials | Discovered new exit (range 13) 570 | -10/Materials | Core integrity fell below 50% 588 | -10/Materials | Discovered new exit (range 10) 600 | -10/Materials | Entered another Materials area 600 | -9/Materials | Evolved 2 slots: Power x1, Propulsion x1 756 | -9/Materials | Released all parts (5) 869 | -9/Materials | Core integrity fell below 50% 933 | -9/Materials | Core integrity fell below 20% 934 | -9/Materials | Destroyed by B-36 Bruiser with Hammer Last Messages --------------- Terminal linked with 0 systems. Please expand to 4 more systems! 00855_ K-01 Serf cleans the Nuclear Reactor. 00871_ Acquired 19 matter. 00875_ Acquired Flight Unit. 00879_ Acquired 11 matter. 00880_ Acquired Flight Unit. 00920_ Flight Unit destroyed. 00920_ System corrupted by crushing effect (+5). 00920_ Knocked back. 00921_ Critical hit (Burn: +37). 00928_ Destroyed Heat Sink. 00928_ Y-45 Defender system corrupted by crushing effect. 00929_ Flight Unit destroyed. 00929_ System corrupted by crushing effect (+1). 00934_ Y-45 Defender suffers critical hit (Smash). 00934_ Destroyed Heat Sink. 00934_ Y-45 Defender system corrupted by crushing effect. Map ----- +----------------------------------------------------+ | ?????????????????????# #????????? | | ????################## #????????? | | ????# "T" + #????????? | | ????# # ##???????? | | ????# # #???????? | | ????# # #???????? | | ????# / #???????? | | ????# """ # #???????? | | ????# """ ###! #???????? | | ????# """ #?# ######+######????? | | ????# #?# #?# #????? | | ????##########?#/#?# #????? | | ???????????????# #?# #????? | | ?###########???#!#?# #????? | | ?# "##### #?# ###### | | ?# """ # # #?# # | | ?# """ # # #?# # | | ?# """ # #[#?# # | | ?# # #%###########+# | | ?# """ # +* % ^ %/% | | ?# """ # # % # ! | | ?# """ # # ^ "^""""" ###### | | ?# # # """"""""" ? | | ?######+### # """ """ | | ????# !*######= | | ????# !@Yu*[%u a | | ????# b################## ###### | | ????# g==#????????????????? #????? | | ????# #????????????????? #????? | | ??#### ##????????????????? #????? | | ?##! #?????????????????? #????? | | ?#! #?????????????????? #????? | | ?#! #?????????????????? ?????? | | ?#! #???###???##??????? ?????? | | ?#! #####"####"#?????????????? | | ?##! # #??????????????? | | ??#### # #??????????????? | | ?????# # ] #??????????????? | | ?????# # #??????????????? | | ?????# + """ """ #??????????????? | | ?????# # """ """ #??????????????? | | ?????# # """ """ #??????????????? | | ?????# # #??????????????? | | ?????###############??????????????? | | ??????????????????????????????????? | | ??????????????????????????????????? | | ??????????????????????????????????? | | ??????????????????????????????????? | | ??????????????????????????????????? | | ??????????????????????????????????? | +----------------------------------------------------+ Best States ------------- Heat Dissipation 42 Energy Generation 14 Energy Capacity 280 Matter Stores 300 Matter Capacity 300 Sight Range 16 Terrain Scan Density 10 Power Shielding 33 Evasion (%) 62 Item Schematics ----------------- None Robot Schematics ------------------ None Fabricated ------------ Nothing Repaired ---------- Nothing Studied --------- None Alien Tech Used ----------------- None Achievements -------------- None Challenges ------------ None Game ------ Seed RiotThrusterLegs Manual? 0 Play Time 00:08:47 Cumulative 53.2 hours Start 2025.12.19 @ 02:58:48 End 2025.12.19 @ 03:06:49 Sessions 1 Manual Loads 0 Difficulty Rogue Special Mode None Game No. 205 Rogue 205 Adventurer 0 Explorer 0 Win Type - Total 0 Types 0/0/0/0/0/0/0/0/0/0 Lore% 12 Gallery% 38 Achievement% 25 Wizard Run 0 Options --------- Layout 1 ASCII 0 Keyboard 1 Movement Vi Keybinds 0 Fullscreen 1 Font 16/SmallcapsGlow Map View 55x38 Zoom Use 0% Tactical HUD 1 Map Filters NONE Filters NONE Steam X RUN: a238dd6d-df76-443a-98ff-5cd328c3c64f